bitfinex-derivatives/quotes_SOLF0:USTF0_20250425
["timestamp","ask_amount","ask_price","bid_price","bid_amount"]
[1745617408886,6.6228,150.87,150.85,6.6236]
[1745617409985,6.6224,150.88,150.85,6.6236]
[1745617410481,2.0133,150.94,150.84,24.44]
[1745617410687,26.4533,150.94,150.84,24.44]
[1745617411490,6.6216,150.9,150.87,6.6225]
[1745617413392,6.6212,150.91,150.88,24.42]
[1745617414289,6.6212,150.91,150.89,6.6218]
[1745617414491,6.6208,150.92,150.89,6.6218]
[1745617424297,6.6208,150.92,150.88,24.42]
[1745617424898,6.6208,150.92,150.89,6.6219]
[1745617430598,6.6202,150.93,150.88,24.42]
[1745617430805,6.6202,150.93,150.9,6.6212]
[1745617431301,2.028,150.96,150.88,24.42]
[1745617432097,6.6198,150.94,150.9,6.6211]
[1745617432304,6.6198,150.94,150.88,24.42]
[1745617432499,6.6198,150.94,150.91,6.6208]
[1745617432999,6.6195,150.95,150.91,6.6208]
[1745617433501,6.6199,150.94,150.9,6.6212]
[1745617435503,6.6201,150.93,150.9,6.6212]
[1745617436803,6.6199,150.94,150.9,6.6212]
[1745617439307,6.6208,150.92,150.88,31.0421]
[1745617439707,2.3409,150.98,150.88,31.0421]
[1745617439909,6.621,150.92,150.88,31.0421]
[1745617440211,2.3409,150.98,150.88,31.0421]
[1745617440407,6.6213,150.91,150.88,31.0423]
[1745617440707,24.42,150.96,150.88,24.42]
[1745617441108,24.42,150.96,150.89,6.6216]
[1745617441408,24.42,150.96,150.88,24.42]
[1745617442207,6.6198,150.94,150.9,6.6212]
[1745617442408,24.42,150.96,150.88,24.42]
[1745617442610,2.3409,150.98,150.88,24.42]
[1745617443510,6.6189,150.96,150.93,6.62]
[1745617443804,6.618,150.98,150.95,6.6191]
[1745617444108,26.7171,151.02,150.92,24.42]
[1745617444709,26.7171,151.02,150.95,6.6191]
[1745617445208,6.6179,150.98,150.95,6.6191]
[1745617448710,6.6179,150.98,150.94,6.6195]
[1745617449411,6.6177,150.99,150.95,6.619]
[1745617449710,26.7171,151.02,150.92,24.42]
[1745617450010,26.7171,151.02,150.93,4.6159]
[1745617450312,6.6172,151.0,150.96,6.6186]
[1745617450513,6.6172,151.0,150.96,31.0386]
[1745617451711,6.6168,151.01,150.97,6.6183]
[1745617455013,6.6168,151.01,150.98,6.6179]
[1745617455414,6.6168,151.01,150.96,24.42]
[1745617455712,6.6168,151.01,150.97,6.6182]
[1745617456713,6.6171,151.0,150.97,6.6182]
[1745617457815,6.6171,151.0,150.96,31.0386]
[1745617460715,6.6171,151.0,150.97,6.6183]
[1745617461317,6.6171,151.0,150.96,31.0386]
[1745617461916,6.6171,151.0,150.97,6.6183]
[1745617466318,6.6171,151.0,150.96,31.0386]
[1745617474129,6.6171,151.0,150.97,6.6183]
[1745617474326,24.4,151.05,150.97,6.6183]
[1745617476728,6.6169,151.01,150.97,6.6183]
[1745617477329,6.6163,151.02,150.96,24.42]
[1745617478230,24.4,151.05,150.96,24.42]
[1745617478728,24.4,151.05,150.93,24.4]
[1745617478928,6.6183,150.98,150.93,24.4]
[1745617479130,24.4,151.05,150.94,6.6194]
[1745617479732,13.231,151.04,150.94,6.6194]
[1745617480034,6.6186,150.97,150.94,6.6194]
[1745617480630,6.6186,150.97,150.95,6.6192]
[1745617480831,6.6186,150.97,150.93,24.4]
[1745617481230,6.6186,150.97,150.94,6.6196]
[1745617483837,6.6186,150.97,150.93,31.0198]
[1745617484038,6.6186,150.97,150.93,24.4]
[1745617484834,6.6186,150.97,150.94,6.6196]
[1745617486537,6.6188,150.96,150.93,31.0199]
[1745617486739,7.1461,151.03,150.93,24.4]
[1745617486938,6.6186,150.97,150.94,6.6196]
[1745617489242,6.6188,150.96,150.93,31.0199]
[1745617489842,6.6186,150.97,150.93,31.0199]
[1745617490441,6.6197,150.94,150.9,29.1421]
[1745617490843,6.6197,150.94,150.9,35.7633]
[1745617491740,6.6197,150.94,150.91,6.6209]
[1745617496244,6.6197,150.94,150.9,35.7633]
[1745617497040,6.6197,150.94,150.91,6.6209]
[1745617498346,6.6194,150.95,150.91,6.6209]
[1745617500553,6.6198,150.94,150.91,6.6209]
[1745617501649,6.6194,150.95,150.91,6.6209]
[1745617502952,6.6194,150.95,150.92,6.6205]
[1745617503153,6.6197,150.94,150.9,29.1421]
[1745617503349,6.6197,150.94,150.9,24.4]
[1745617504355,24.4,150.97,150.9,24.4]
[1745617504555,31.7163,150.96,150.86,29.1221]
[1745617504855,24.4,150.95,150.86,29.1221]
[1745617505055,24.4,150.95,150.88,6.622]
[1745617505252,24.4,150.95,150.86,24.4]
[1745617505556,6.6205,150.93,150.89,6.6215]
[1745617505855,24.4,150.95,150.89,6.6215]
[1745617506359,6.6208,150.92,150.89,6.6215]
[1745617506753,24.4,150.95,150.86,24.4]
[1745617506954,6.6213,150.91,150.86,24.4]
[1745617507154,24.4,150.95,150.86,24.4]
[1745617507357,6.6207,150.92,150.89,6.6216]
[1745617507760,6.6207,150.92,150.88,6.6221]
[1745617508755,6.6202,150.93,150.89,6.6218]
[1745617509257,6.6202,150.93,150.88,6.6221]
[1745617509460,6.6202,150.93,150.86,24.4]
[1745617510359,6.6202,150.93,150.89,6.6218]
[1745617511059,6.6202,150.93,150.88,6.6221]
[1745617511561,6.6206,150.92,150.88,6.6221]
[1745617511858,24.4,150.95,150.87,6.6227]
[1745617512059,6.6214,150.91,150.87,6.6227]
[1745617512261,24.4,150.95,150.87,6.6227]
[1745617512461,6.6216,150.9,150.87,6.6227]
[1745617512759,6.6216,150.9,150.86,6.623]
[1745617513160,6.6219,150.89,150.86,6.623]
[1745617513560,6.6219,150.89,150.85,6.6235]
[1745617513760,6.6224,150.88,150.85,6.6235]
[1745617513961,6.6224,150.88,150.84,6.6239]
[1745617516165,6.6224,150.88,150.76,6.9935]
[1745617516166,24.4,150.87,150.7,13.26]
[1745617516366,355.0,150.86,150.63,24.4]
[1745617516566,355.0,150.86,150.63,31.669]
[1745617516863,6.6272,150.77,150.63,31.669]
[1745617517261,6.6272,150.77,150.71,6.6296]
[1745617517563,24.4,150.8,150.66,24.4]
[1745617517763,2.446,150.79,150.67,4.8717]
[1745617518066,6.6272,150.77,150.7,6.6298]
[1745617518268,2.446,150.79,150.71,24.4]
[1745617518966,6.6263,150.79,150.71,24.4]
[1745617519166,24.4,150.8,150.71,24.4]
[1745617519669,6.6274,150.77,150.71,31.0296]
[1745617520069,24.4,150.8,150.71,24.4]
[1745617520268,6.6269,150.78,150.72,6.6291]
[1745617520472,6.6269,150.78,150.71,24.4]
[1745617520769,6.6264,150.79,150.73,6.6288]
[1745617521070,24.4,150.83,150.72,2.271]
[1745617521270,6.6261,150.8,150.75,6.6279]
[1745617521570,6.6261,150.8,150.76,24.4]
[1745617522670,6.6261,150.8,150.76,31.0275]
[1745617522871,6.6261,150.8,150.76,24.4]
[1745617524073,6.6261,150.8,150.76,31.0274]
[1745617524772,6.6263,150.79,150.76,31.0274]
[1745617525567,24.4,150.83,150.73,24.42]
[1745617526372,24.4,150.83,150.74,6.6282]
[1745617526673,6.6279,150.76,150.73,6.6287]
[1745617526972,24.42,150.79,150.73,6.6287]
[1745617527373,6.6279,150.76,150.73,6.6287]
[1745617528075,6.6279,150.76,150.72,6.6292]
[1745617529273,6.6282,150.75,150.71,6.6295]
[1745617530274,6.6282,150.75,150.72,6.6293]
[1745617531076,6.6282,150.75,150.71,6.6296]
[1745617531376,6.6282,150.75,150.71,2.3897]
[1745617531778,6.6272,150.77,150.71,2.3897]
[1745617531976,6.6272,150.77,150.72,2.3088]
[1745617532474,6.6268,150.78,150.74,6.6284]
[1745617532674,24.42,150.82,150.72,2.3088]
[1745617532876,13.2512,150.81,150.58,13.2702]
[1745617533077,17.8128,150.81,150.65,2.3291]
[1745617533274,17.8128,150.81,150.58,13.2702]
[1745617533275,19.87,150.79,150.33,131.8604502]
[1745617533474,19.84,150.62,150.34,26.04]
[1745617533676,507.8816,150.61,150.35,4.7856]
[1745617533871,503.32,150.6,150.35,4.7856]
[1745617534278,503.32,150.6,150.32,194.1726843]
[1745617534478,13.2713,150.58,150.33,31.7579]
[1745617534984,6.6391,150.5,150.41,6.6427]
[1745617535279,1.15676107,150.59,150.42,31.7645]
[1745617535478,6.6384,150.52,150.43,6.6418]
[1745617535679,1.15676107,150.59,150.43,2.4768]
[1745617536081,1.15676107,150.59,150.43,9.1186]
[1745617536285,14.42716107,150.59,150.41,27.14]
[1745617537281,6.6389,150.51,150.44,6.6416]
[1745617537473,6.6389,150.51,150.45,27.14]
[1745617537675,6.6382,150.52,150.45,27.14]
[1745617537873,503.32,150.6,150.42,4.7006]
[1745617538078,503.32,150.6,150.43,27.14]
[1745617538275,6.6393,150.5,150.44,2.4465]
[1745617538685,27.14,150.56,150.45,27.14]
[1745617538876,9.17172728,150.79,150.45,429.85]
[1745617539076,355.0,151.35,150.47,39.71]
[1745617539274,113.01290183,151.01,150.91,6.621]
[1745617539477,113.01290183,151.01,150.81,31.78]
[1745617539478,100.31122728,150.9,150.81,31.78]
[1745617539683,100.31122728,150.83,150.71,31.78]
[1745617540576,214.93478402,150.83,150.71,31.78]
[1745617540783,100.31122728,150.81,150.72,7.06272851]
[1745617541283,100.31122728,150.79,150.72,7.06272851]
[1745617541483,100.31122728,150.8,150.78,61.0994542]
[1745617541886,135.25478402,150.76,150.73,7.06272851]
[1745617542080,235.5660113,150.74,150.72,72.72847786]
[1745617542275,235.5660113,150.73,150.58,32.94]
[1745617542479,100.31122728,150.71,150.63,32.92]
[1745617542884,32.92,150.79,150.63,32.92]
[1745617543086,235.5660113,150.73,150.63,32.92]
[1745617543586,100.31122728,150.73,150.64,2.5103]
[1745617543887,81.44076486,150.73,150.7,22.95020347]
[1745617544483,81.44076486,150.73,150.69,6.66414349]
[1745617544987,68.86074295,150.73,150.69,6.66414349]
[1745617545487,68.86074295,150.73,150.65,6.66414349]
[1745617546090,68.86074295,150.72,150.65,6.66414349]
[1745617546290,68.86074295,150.73,150.65,6.66414349]
[1745617546785,6.6268,150.78,150.65,6.66414349]
[1745617546986,68.86074295,150.73,150.64,12.5565184]
[1745617547887,1.15476507,150.85,150.64,12.5565184]
[1745617548086,204.11552697,150.75,150.64,12.5565184]
[1745617548287,68.86074295,150.75,150.64,4.9032]
[1745617548488,68.86074295,150.74,150.64,4.9032]
[1745617548887,6.6271,150.77,150.64,4.9032]
[1745617549087,68.86074295,150.74,150.64,4.9032]
[1745617549590,6.6276,150.76,150.64,4.9032]
[1745617549792,204.11552697,150.75,150.65,13.89633038]
[1745617550786,68.86074295,150.75,150.65,13.89633038]
[1745617551088,68.86074295,150.74,150.65,13.89633038]
[1745617551592,6.6271,150.77,150.65,13.89633038]
[1745617551890,68.86074295,150.74,150.66,7.6533184]
[1745617552288,6.6271,150.77,150.66,7.6533184]
[1745617552593,68.86074295,150.74,150.66,7.6533184]
[1745617553089,6.6277,150.76,150.66,7.6533184]
[1745617553290,68.86074295,150.74,150.66,7.6533184]
[1745617553687,29.54888633,150.74,150.71,7.6533184]
[1745617553891,6.6277,150.76,150.71,7.6533184]
[1745617554093,29.54888633,150.74,150.71,7.6533184]
[1745617554294,6.6277,150.76,150.72,6.92120521]
[1745617554495,29.54888633,150.74,150.72,6.92120521]
[1745617555092,29.54888633,150.74,150.73,20.84956495]
[1745617555692,135.25478402,150.75,150.73,20.84956495]
[1745617556091,135.25478402,150.75,150.74,6.92120521]
[1745617556593,135.25478402,150.74,150.73,1.82571719]
[1745617557095,141.88318402,150.74,150.73,1.82571719]
[1745617557895,6.6305,150.7,150.66,40.60534776]
[1745617559497,6.6298,150.71,150.66,40.60534776]
[1745617559695,141.88458402,150.71,150.66,40.60534776]
[1745617559995,6.6298,150.71,150.66,40.60534776]
[1745617560396,6.6298,150.71,150.66,32.92]
[1745617560698,6.6303,150.7,150.66,32.92]
[1745617561195,32.92,150.79,150.66,32.92]
[1745617561392,6.6309,150.69,150.66,32.92]
[1745617561998,135.25478402,150.71,150.66,32.92]
[1745617561999,6.6312,150.68,150.66,32.92]
[1745617563803,32.92,150.79,150.66,32.92]
[1745617564005,135.25478402,150.71,150.66,32.92]
[1745617564293,32.92,150.79,150.66,32.92]
[1745617564601,135.25478402,150.71,150.66,32.92]
[1745617564996,32.92,150.79,150.66,32.92]
[1745617565195,135.25478402,150.71,150.66,32.92]
[1745617565491,32.92,150.79,150.66,32.92]
[1745617565695,6.6312,150.68,150.66,32.92]
[1745617566105,6.6312,150.68,150.64,4.9032]
[1745617567498,6.6308,150.69,150.64,4.9032]
[1745617571398,135.25478402,150.68,150.64,4.9032]
[1745617571796,135.25478402,150.68,150.64,2.5103]
[1745617572000,135.25478402,150.68,150.63,34.0792]
[1745617572501,6.6324,150.65,150.63,34.0792]
[1745617573402,6.6322,150.66,150.63,34.0792]
[1745617574302,135.25478402,150.65,150.63,31.74]
[1745617574995,6.6328,150.64,150.63,31.74]
[1745617576603,4.9335,150.72,150.63,31.74]
[1745617576801,135.25478402,150.65,150.63,31.74]
[1745617577402,6.6328,150.64,150.63,31.74]
[1745617582904,6.6328,150.64,150.61,30.48]
[1745617583608,6.6328,150.64,150.59,4.8049]
[1745617583811,6.6328,150.64,150.6,30.48]
[1745617586207,6.6328,150.64,150.61,30.48]
[1745617586609,141.88758402,150.64,150.61,30.48]
[1745617587412,141.88758402,150.64,150.59,4.8049]
[1745617587606,141.88758402,150.64,150.6,30.48]
[1745617587909,135.25478402,150.63,150.6,30.48]
[1745617588105,6.6328,150.64,150.6,30.48]
[1745617588302,135.25478402,150.63,150.6,30.48]
[1745617588509,6.6328,150.64,150.6,30.48]
[1745617588809,135.25478402,150.63,150.6,30.48]
[1745617589010,6.6328,150.64,150.6,30.48]
[1745617589206,135.25478402,150.63,150.6,30.48]
[1745617589410,141.88818402,150.63,150.6,30.48]
[1745617589710,6.6334,150.63,150.6,30.48]
[1745617590315,141.88818402,150.63,150.55,479.7582]
[1745617590511,6.6334,150.63,150.56,30.48]
[1745617591215,135.25478402,150.62,150.56,30.48]
[1745617592015,135.25478402,150.62,150.55,482.1793]
[1745617592213,135.25478402,150.62,150.57,30.48]
[1745617593418,135.25478402,150.62,150.55,482.1793]
[1745617593618,135.25478402,150.62,150.58,30.48]
[1745617594013,135.25478402,150.62,150.55,477.46]
[1745617594221,135.25478402,150.58,150.56,30.48]
[1745617595117,141.89028402,150.58,150.56,30.48]
[1745617596318,141.89028402,150.58,150.5,2.3419]
[1745617596319,135.25478402,150.57,150.49,30.5]
[1745617596525,135.25478402,150.55,150.49,30.5]
[1745617596822,141.89208402,150.54,150.49,30.5]
[1745617597119,135.25478402,150.54,150.49,30.5]
[1745617597721,141.89208402,150.54,150.49,30.5]
[1745617598821,135.25478402,150.54,150.49,30.5]
[1745617599322,135.25478402,150.53,150.49,30.5]
[1745617599823,135.25478402,150.52,150.49,30.5]
[1745617600623,30.5,150.61,150.49,30.5]
[1745617600825,135.25478402,150.53,150.49,30.5]
[1745617601027,30.5,150.61,150.49,30.5]
[1745617601326,135.25478402,150.53,150.49,30.5]
[1745617601624,30.5,150.61,150.49,30.5]
[1745617601825,135.25478402,150.53,150.49,30.5]
[1745617602423,6.6373,150.54,150.49,30.5]
[1745617602624,135.25478402,150.53,150.49,30.5]
[1745617602926,6.6366,150.56,150.49,30.5]
[1745617603127,135.25478402,150.54,150.49,30.5]
[1745617603723,6.6366,150.56,150.49,30.5]
[1745617603923,135.25478402,150.55,150.49,30.5]
[1745617606127,141.89168402,150.55,150.49,30.5]
[1745617606324,135.25478402,150.55,150.49,30.5]
[1745617607228,4.6482,150.64,150.49,30.5]
[1745617607529,135.25478402,150.57,150.49,30.5]
[1745617607929,6.6357,150.58,150.49,30.5]
[1745617608124,135.25478402,150.57,150.49,30.5]
[1745617608321,19.9,150.84,150.49,37.14]
[1745617608528,135.25478402,150.67,150.5,1.21856441]
[1745617609028,4.7599,150.76,150.5,1.21856441]
[1745617609229,135.25478402,150.69,150.66,6.6317]
[1745617609434,135.25478402,150.69,150.67,29.38]
[1745617609730,135.25478402,150.69,150.68,29.38]
[1745617610730,141.88538402,150.69,150.68,29.38]
[1745617611230,135.25478402,150.69,150.64,29.38]
[1745617611421,135.25478402,150.65,150.64,29.38]
[1745617614233,141.88718402,150.65,150.64,29.38]
[1745617614533,135.25478402,150.65,150.64,29.38]
[1745617618239,6.6317,150.67,150.64,29.38]
[1745617618439,135.25478402,150.65,150.64,29.38]
[1745617618935,6.6317,150.67,150.64,29.38]
[1745617619140,135.25478402,150.65,150.64,29.38]
[1745617619343,6.632,150.66,150.64,29.38]
[1745617619541,135.25478402,150.65,150.64,29.38]
[1745617620245,6.632,150.66,150.64,29.38]
[1745617620443,135.25478402,150.65,150.64,29.38]
[1745617620643,29.38,150.73,150.63,477.86]
[1745617620843,135.25478402,150.64,150.56,4.8071]
[1745617621042,135.25478402,150.58,150.54,29.38]
[1745617621241,135.25478402,150.58,150.54,36.0169]
[1745617621442,6.6347,150.6,150.54,36.0169]
[1745617621643,135.25478402,150.58,150.54,29.38]
[1745617621943,141.88988402,150.59,150.54,29.38]
[1745617622746,135.25478402,150.59,150.54,29.38]
[1745617622946,135.25478402,150.57,150.54,29.38]
[1745617624139,141.89098402,150.57,150.54,29.38]
[1745617625849,6.6364,150.56,150.54,29.38]
[1745617626150,135.25478402,150.57,150.54,29.38]
[1745617626448,141.89158402,150.55,150.54,29.38]
[1745617626845,6.64,150.55,150.42,30.74139106]
[1745617627051,135.25478402,150.47,150.42,37.38379106]
[1745617627245,135.25478402,150.46,150.42,30.74139106]
[1745617628152,135.25478402,150.45,150.42,30.74139106]
[1745617628948,6.6405,150.47,150.41,6.643]
[1745617629153,135.25478402,150.45,150.4,40.8227]
[1745617629353,135.25478402,150.45,150.4,34.1794]
[1745617629554,29.38,150.52,150.4,34.1794]
[1745617629754,135.25478402,150.45,150.4,34.1794]
[1745617629956,29.38,150.52,150.35,478.91683798]
[1745617630151,477.88,150.51,150.33,7.68534776]
[1745617630356,135.25478402,150.4,150.33,37.06534776]
[1745617630557,135.25478402,150.39,150.33,37.06534776]
[1745617630756,135.25478402,150.38,150.33,37.06534776]
[1745617630954,135.25478402,150.38,150.33,43.71184776]
[1745617631160,135.25478402,150.36,150.33,37.06534776]
[1745617631353,135.25478402,150.36,150.33,29.38]
[1745617631553,7.1963,150.43,150.33,29.38]
[1745617631749,135.25478402,150.36,150.29,2.2997]
[1745617631953,135.25478402,150.36,150.3,29.38]
[1745617632257,7.1963,150.43,150.33,6.6462]
[1745617632460,135.25478402,150.36,150.3,29.38]
[1745617632851,29.4,150.39,150.27,7.68534776]
[1745617633152,28.96,150.39,150.27,7.68534776]
[1745617633354,28.96,150.39,150.28,28.96]
[1745617633550,135.25478402,150.36,150.28,28.96]
[1745617633755,135.25478402,150.35,150.28,28.96]
[1745617633957,135.25478402,150.35,150.32,6.6466]
[1745617634255,135.25478402,150.35,150.28,28.96]
[1745617634256,135.25478402,150.34,150.28,28.96]
[1745617634557,135.25478402,150.34,150.31,6.6471]
[1745617634758,28.96,150.39,150.31,6.6471]
[1745617634960,135.25478402,150.35,150.31,6.6471]
[1745617635260,135.25478402,150.35,150.2,30.74139106]
[1745617635261,135.25478402,150.32,150.21,28.96]
[1745617635460,28.96,150.35,150.21,36.3079]
[1745617635461,135.25478402,150.3,150.21,36.3079]
[1745617635758,135.25478402,150.32,150.21,36.3079]
[1745617636261,28.96,150.38,150.21,36.3079]
[1745617636455,135.25478402,150.3,150.21,36.3079]
[1745617636758,135.25478402,150.27,150.24,6.6504]
[1745617636959,135.25478402,150.27,150.21,36.3079]
[1745617637161,31.4481,150.35,150.21,36.3079]
[1745617637364,135.25478402,150.27,150.21,36.3079]
[1745617637559,4.701,150.34,150.21,36.3079]
[1745617637857,135.25478402,150.29,150.21,36.3079]
[1745617638162,135.25478402,150.29,150.26,6.6493]
[1745617638858,4.701,150.34,150.25,35.6099]
[1745617639057,135.25478402,150.28,150.25,35.6099]
[1745617639261,4.701,150.34,150.25,28.96]
[1745617639453,135.25478402,150.28,150.25,28.96]
[1745617639759,4.701,150.34,150.25,28.96]
[1745617639961,4.701,150.34,150.25,35.61]
[1745617639962,135.25478402,150.28,150.25,35.61]
[1745617640561,6.647,150.32,150.25,35.61]
[1745617640763,135.25478402,150.28,150.25,35.61]
[1745617640957,6.647,150.32,150.25,6.65]
[1745617641162,135.25478402,150.29,150.22,28.96]
[1745617641565,135.25478402,150.29,150.28,6.6487]
[1745617642163,4.701,150.34,150.28,6.6487]
[1745617642363,135.25478402,150.29,150.28,6.6487]
[1745617642764,11.3472,150.34,150.22,28.96]
[1745617643064,135.25478402,150.29,150.22,28.96]
[1745617643762,135.25478402,150.29,150.27,6.649]
[1745617644163,135.25478402,150.29,150.27,6.6491]
[1745617645568,135.25478402,150.29,150.26,6.6495]
[1745617646066,135.25478402,150.29,150.27,6.6491]
[1745617646267,135.25478402,150.29,150.22,28.96]
[1745617646663,4.701,150.34,150.22,28.96]
[1745617646967,135.25478402,150.29,150.23,2.5133]
[1745617647362,4.701,150.34,150.23,4.8617]
[1745617647564,135.25478402,150.19,150.04,30.2]
[1745617647765,135.25478402,150.19,150.05,30.2]
[1745617647966,508.8,150.33,150.06,2.4871]
[1745617648168,30.2,150.33,150.06,2.4871]
[1745617648366,135.25478402,150.22,150.07,30.2]
[1745617648561,135.25478402,150.22,150.08,511.8152]
[1745617648868,135.25478402,150.21,150.09,508.8]
[1745617649265,135.25478402,150.21,150.09,478.6]
[1745617649567,2.4225,150.27,150.1,30.2]
[1745617649768,135.25478402,150.22,150.1,30.2]
[1745617650071,135.25478402,150.22,150.19,6.6524]
[1745617650264,135.25478402,150.2,150.14,478.72]
[1745617650464,135.25478402,150.18,150.15,30.2]
[1745617650969,135.25478402,150.18,150.16,30.2]
[1745617651267,43.4902,150.37,150.16,30.2]
[1745617651464,135.25478402,150.25,150.17,2.2978]
[1745617651662,135.25478402,150.26,150.18,30.2]
[1745617652169,135.25478402,150.26,150.25,6.6501]
[1745617652469,135.25478402,150.26,150.25,36.8501]
[1745617652867,6.6472,150.32,150.25,36.8501]
[1745617653067,135.25478402,150.27,150.26,6.6496]
[1745617654369,135.25478402,150.27,150.25,36.8499]
[1745617654569,135.25478402,150.26,150.25,36.8499]
[1745617655678,6.6466,150.33,150.25,36.8499]
[1745617655869,135.25478402,150.26,150.25,36.8499]
[1745617656069,6.6466,150.33,150.26,6.6496]
[1745617656270,135.25478402,150.26,150.25,30.2]
[1745617656673,135.25478402,150.26,150.25,36.8497]
[1745617656867,6.6471,150.32,150.25,30.22]
[1745617657170,135.25478402,150.26,150.25,30.22]
[1745617657471,135.25478402,150.28,150.25,30.22]
[1745617657874,6.6469,150.33,150.26,6.6492]
[1745617658073,135.25478402,150.28,150.25,30.22]
[1745617658274,135.25478402,150.28,150.26,6.6493]
[1745617658574,7.212,150.36,150.26,6.6493]
[1745617658765,135.25478402,150.28,150.26,6.6493]
[1745617659274,6.647,150.32,150.27,30.22]
[1745617659474,135.25478402,150.28,150.27,30.22]
[1745617659676,135.25478402,150.28,150.24,6.6501]
[1745617659973,6.6476,150.31,150.27,30.22]
[1745617660368,135.25478402,150.28,150.27,30.22]
[1745617660573,30.22,150.44,150.27,30.22]
[1745617660774,30.22,150.44,150.3,6.6479]
[1745617660775,135.25478402,150.31,150.3,6.6479]
[1745617660976,135.25478402,150.31,150.3,36.8679]
[1745617661176,7.2317,150.42,150.3,30.22]
[1745617661376,135.25478402,150.32,150.3,30.22]
[1745617662275,135.25478402,150.32,150.31,6.6473]
[1745617662769,516.84,150.32,150.06,7.68534776]
[1745617662975,135.25478402,150.18,150.17,61.51775828]
[1745617663175,510.18,150.32,150.17,61.51775828]
[1745617663376,135.25478402,150.18,150.17,61.51775828]
[1745617663878,510.18,150.32,150.17,61.51775828]
[1745617664077,135.25478402,150.2,150.17,61.51775828]
[1745617664278,135.25478402,150.19,150.17,68.17115828]
[1745617664477,135.25478402,150.19,150.17,61.51775828]
[1745617664679,510.18,150.32,150.17,61.51775828]
[1745617664871,135.25478402,150.19,150.17,61.51775828]
[1745617665075,510.18,150.32,150.17,61.51775828]
[1745617665276,135.25478402,150.21,150.17,61.51775828]
[1745617665479,135.25478402,150.21,150.19,6.6524]
[1745617665779,31.46,150.32,150.15,4.7828]
[1745617665979,135.25478402,150.22,150.16,31.46]
[1745617666176,135.25478402,150.22,150.21,6.6517]
[1745617666378,6.6481,150.3,150.21,38.1117]
[1745617666577,135.25478402,150.22,150.21,38.1117]
[1745617666981,31.46,150.32,150.21,31.46]
[1745617667279,135.25478402,150.22,150.21,31.46]
[1745617667483,135.25478402,150.23,150.22,6.6512]
[1745617668788,135.25478402,150.23,150.21,31.46]
[1745617669083,135.25478402,150.22,150.21,31.46]
[1745617669686,135.25478402,150.22,150.17,31.46]
[1745617669885,135.25478402,150.19,150.17,38.1133]
[1745617670086,135.25478402,150.18,150.15,39.25592667]
[1745617670291,135.25478402,150.16,150.15,31.46]
[1745617670590,31.46,150.27,150.15,31.46]
[1745617670786,19.9,150.26,150.07,9.67328705]
[1745617670992,19.9,150.24,150.05,192.70149347]
[1745617671195,19.9,150.22,150.05,265.95149347]
[1745617671491,32.64,150.21,150.06,33.29]
[1745617671894,6.6541,150.16,150.1,33.29]
[1745617672093,6.6541,150.16,150.1,65.95]
[1745617672291,32.64,150.21,150.05,192.70149347]
[1745617672492,32.64,150.21,150.05,265.95149347]
[1745617672695,52.54,150.21,150.05,272.61009347]
[1745617672895,1.15947823,150.2,150.05,265.95149347]
[1745617673195,32.64,150.21,150.07,33.29]
[1745617673494,6.6559,150.12,150.08,32.66]
[1745617673696,19.9,150.2,150.04,32.66]
[1745617673994,19.9,150.2,150.04,33.29]
[1745617674295,19.9,150.2,150.04,39.96]